fUSD/lending_fUSD_20241128
["ID","MTS","AMOUNT","RATE_DAILY","PERIOD"]
[343662547,1732807851241,-500.0,9.863e-05,2]
[343662548,1732807851254,-500.0,9.863e-05,2]
[343662549,1732807851263,-500.0,9.863e-05,2]
[343662550,1732807851273,-252.14895094,9.863e-05,2]
[343662551,1732807851282,-638.79,9.863e-05,2]
[343662552,1732807851291,-500.0,9.863e-05,2]
[343662553,1732807851300,-500.0,9.863e-05,2]
[343662554,1732807851309,-377.72,9.863e-05,2]
[343662556,1732807851318,-523.23494041,9.863e-05,2]
[343662558,1732807851328,-500.0,9.863e-05,2]
[343662560,1732807851337,-500.0,9.863e-05,2]
[343662562,1732807851346,-500.0,9.863e-05,2]
[343662564,1732807851355,-481.47210704,9.863e-05,2]
[343662566,1732807851364,-500.0,9.863e-05,2]
[343662568,1732807851373,-500.0,9.863e-05,2]
[343662570,1732807851383,-500.0,9.863e-05,2]
[343662572,1732807851392,-500.0,9.863e-05,2]
[343662574,1732807851401,-500.0,9.863e-05,2]
[343662576,1732807851411,-500.0,9.863e-05,2]
[343662578,1732807851420,-500.0,9.863e-05,2]
[343662580,1732807851429,-500.0,9.863e-05,2]
[343662582,1732807851439,-500.0,9.863e-05,2]
[343662584,1732807851448,-500.0,9.863e-05,2]
[343662586,1732807851457,-154.86463776,9.863e-05,2]
[343662588,1732807851466,-500.0,9.863e-05,2]
[343662590,1732807851475,-500.0,9.863e-05,2]
[343662592,1732807851485,-500.0,9.863e-05,2]
[343662594,1732807851494,-232.23,9.863e-05,2]
[343662596,1732807851503,-500.0,9.863e-05,2]
[343662598,1732807851512,-497.41,9.863e-05,2]
[343662600,1732807851521,-1574.69,9.863e-05,2]
[343662602,1732807851531,-1574.69,9.863e-05,2]
[343662604,1732807851540,-1574.69,9.863e-05,2]
[343662606,1732807851549,-1574.69,9.863e-05,2]
[343662608,1732807851559,-500.0,9.863e-05,2]
[343662610,1732807851568,-500.0,9.863e-05,2]
[343662612,1732807851577,-500.0,9.863e-05,2]
[343662614,1732807851587,-500.0,9.863e-05,2]
[343662616,1732807851596,-500.0,9.863e-05,2]
[343662618,1732807851605,-500.0,9.863e-05,2]
[343662619,1732807851614,-188.2,9.863e-05,2]
[343662621,1732807851624,-500.0,9.863e-05,2]
[343662623,1732807851633,-500.0,9.863e-05,2]
[343662625,1732807851643,-500.0,9.863e-05,2]
[343662627,1732807851652,-500.0,9.863e-05,2]
[343662629,1732807851661,-500.0,9.863e-05,2]
[343662631,1732807851670,-500.0,9.863e-05,2]
[343662633,1732807851679,-500.0,9.863e-05,2]
[343662635,1732807851688,-500.0,9.863e-05,2]
[343662637,1732807851698,-500.0,9.863e-05,2]
[343662639,1732807851707,-162.82962982,9.863e-05,2]
[343662641,1732807851716,-500.0,9.863e-05,2]
[343662643,1732807851725,-500.0,9.863e-05,2]
[343662645,1732807851734,-500.0,9.863e-05,2]
[343662647,1732807851743,-500.0,9.863e-05,2]
[343662649,1732807851753,-500.0,9.863e-05,2]
[343662651,1732807851762,-500.0,9.863e-05,2]
[343662653,1732807851772,-500.0,9.863e-05,2]
[343662655,1732807851781,-500.0,9.863e-05,2]
[343662657,1732807851791,-500.0,9.863e-05,2]
[343662659,1732807851800,-500.0,9.863e-05,2]
[343662661,1732807851810,-500.0,9.863e-05,2]
[343662663,1732807851819,-500.0,9.863e-05,2]
[343662665,1732807851828,-500.0,9.863e-05,2]
[343662667,1732807851838,-500.0,9.863e-05,2]
[343662668,1732807851847,-500.0,9.863e-05,2]
[343662669,1732807851855,-500.0,9.863e-05,2]
[343662670,1732807851864,-500.0,9.863e-05,2]
[343662671,1732807851873,-559.32567429,9.863e-05,2]
[343662672,1732807851882,-500.0,9.863e-05,2]
[343662673,1732807851891,-500.0,9.863e-05,2]
[343662674,1732807851900,-500.0,9.863e-05,2]
[343662675,1732807851909,-500.0,9.863e-05,2]
[343662676,1732807851918,-500.0,9.863e-05,2]
[343662677,1732807851927,-500.0,9.863e-05,2]
[343662678,1732807851936,-500.0,9.863e-05,2]
[343662679,1732807851945,-500.0,9.863e-05,2]
[343662681,1732807851954,-500.0,9.863e-05,2]
[343662683,1732807851966,-500.0,9.863e-05,2]
[343662685,1732807851975,-500.0,9.863e-05,2]
[343662687,1732807851984,-500.0,9.863e-05,2]
[343662689,1732807852000,-564.42,9.863e-05,2]
[343662691,1732807852009,-500.0,9.863e-05,2]
[343662693,1732807852018,-534.41,9.863e-05,2]
[343662695,1732807852027,-500.0,9.863e-05,2]
[343662697,1732807852037,-500.0,9.863e-05,2]
[343662699,1732807852046,-500.0,9.863e-05,2]
[343662701,1732807852055,-500.0,9.863e-05,2]
[343662703,1732807852064,-500.0,9.863e-05,2]
[343662705,1732807852073,-500.0,9.863e-05,2]
[343662707,1732807852082,-500.0,9.863e-05,2]
[343662709,1732807852091,-244.3,9.863e-05,2]
[343662711,1732807852100,-500.0,9.863e-05,2]
[343662713,1732807852109,-500.0,9.863e-05,2]
[343662715,1732807852118,-500.0,9.863e-05,2]
[343662717,1732807852128,-500.0,9.863e-05,2]
[343662719,1732807852137,-612.04,9.863e-05,2]
[343662720,1732807852146,-500.0,9.863e-05,2]
[343662722,1732807852155,-500.0,9.863e-05,2]
[343662724,1732807852165,-581.59002169,9.863e-05,2]
[343662726,1732807852174,-500.0,9.863e-05,2]
[343662728,1732807852183,-528.81000273,9.863e-05,2]
[343662730,1732807852192,-500.0,9.863e-05,2]
[343662732,1732807852201,-500.0,9.863e-05,2]
[343662734,1732807852210,-210.96,9.863e-05,2]
[343662736,1732807852219,-500.0,9.863e-05,2]
[343662738,1732807852228,-500.0,9.863e-05,2]
[343662740,1732807852237,-500.0,9.863e-05,2]
[343662742,1732807852248,-632.52,9.863e-05,2]
[343662744,1732807852257,-583.85815937,9.863e-05,2]
[343662746,1732807852266,-621.76,9.863e-05,2]
[343662748,1732807852275,-500.0,9.863e-05,2]
[343662750,1732807852284,-500.0,9.863e-05,2]
[343662752,1732807852294,-500.0,9.863e-05,2]
[343662754,1732807852303,-500.0,9.863e-05,2]
[343662756,1732807852313,-500.0,9.863e-05,2]
[343662758,1732807852322,-500.0,9.863e-05,2]
[343662760,1732807852332,-500.0,9.863e-05,2]
[343662762,1732807852342,-506.38,9.863e-05,2]
[343662765,1732807852352,-500.0,9.863e-05,2]
[343662766,1732807852361,-500.0,9.863e-05,2]
[343662768,1732807852370,-500.0,9.863e-05,2]
[343662770,1732807852380,-500.0,9.863e-05,2]
[343662772,1732807852390,-500.0,9.863e-05,2]
[343662774,1732807852399,-575.47,9.863e-05,2]
[343662776,1732807852410,-606.16,9.863e-05,2]
[343662779,1732807852419,-500.0,9.863e-05,2]
[343662780,1732807852428,-500.0,9.863e-05,2]
[343662783,1732807852437,-500.0,9.863e-05,2]
[343662785,1732807852447,-631.89,9.863e-05,2]
[343662787,1732807852456,-631.89,9.863e-05,2]
[343662788,1732807852466,-453.73391036,9.863e-05,2]
[343663706,1732807901543,-717.5,9.4e-05,2]
[343663707,1732807901568,-37254.2097,9.4e-05,2]
[343663708,1732807901592,-58067.52,9.4e-05,2]
[343663709,1732807901615,-492.74,9.5e-05,2]
[343663710,1732807901638,-350.23278024,9.5e-05,2]
[343663711,1732807901665,-150.0,9.738e-05,2]
[343663712,1732807901692,-150.0,9.809e-05,2]
[343663713,1732807901718,-150.0,9.816e-05,2]
[343663714,1732807901978,-150.0,9.831e-05,2]
[343663715,1732807902006,-150.0,9.835e-05,2]
[343663716,1732807902030,-150.0,9.843e-05,2]
[343663717,1732807902057,-178.15608964,9.863e-05,2]
[343663718,1732807902079,-500.0,9.863e-05,2]
[343663719,1732807902103,-500.0,9.863e-05,2]
[343663720,1732807902125,-500.0,9.863e-05,2]
[343663721,1732807902148,-631.89,9.863e-05,2]
[343663722,1732807902170,-204.09,9.863e-05,2]
[343663723,1732807902192,-500.0,9.863e-05,2]
[343663724,1732807902215,-500.0,9.863e-05,2]
[343663725,1732807902241,-500.0,9.863e-05,2]
[343663726,1732807902263,-500.0,9.863e-05,2]
[343663727,1732807902285,-500.0,9.863e-05,2]
[343663728,1732807902308,-500.0,9.863e-05,2]
[343663729,1732807902332,-500.0,9.863e-05,2]
[343663730,1732807902356,-500.0,9.863e-05,2]
[343663731,1732807902380,-384.17,9.863e-05,2]
[343663732,1732807902404,-500.0,9.863e-05,2]
[343663733,1732807902427,-500.0,9.863e-05,2]
[343663734,1732807902450,-264.22,9.863e-05,2]
[343663735,1732807902474,-500.0,9.863e-05,2]
[343663736,1732807902499,-500.0,9.863e-05,2]
[343663737,1732807902522,-500.0,9.863e-05,2]
[343663738,1732807902547,-235.89,9.863e-05,2]
[343663739,1732807902572,-599.85,9.863e-05,2]
[343663740,1732807902597,-500.0,9.863e-05,2]
[343663741,1732807902621,-500.0,9.863e-05,2]
[343663742,1732807902645,-500.0,9.863e-05,2]
[343663743,1732807902683,-500.0,9.863e-05,2]
[343663744,1732807902710,-500.0,9.863e-05,2]
[343663745,1732807902735,-500.0,9.863e-05,2]
[343663746,1732807902762,-500.0,9.863e-05,2]
[343663747,1732807902787,-500.0,9.863e-05,2]
[343663748,1732807902812,-500.0,9.863e-05,2]
[343663749,1732807902841,-500.0,9.863e-05,2]
[343663750,1732807902869,-500.0,9.863e-05,2]
[343663751,1732807902894,-500.0,9.863e-05,2]
[343663752,1732807902923,-501.82276355,9.863e-05,2]
[343663753,1732807902948,-500.0,9.863e-05,2]
[343663754,1732807902972,-500.0,9.863e-05,2]
[343663755,1732807903002,-618.66818436,9.863e-05,2]
[343663756,1732807903031,-500.0,9.863e-05,2]
[343663757,1732807903055,-500.0,9.863e-05,2]
[343663758,1732807903080,-500.0,9.863e-05,2]
[343663759,1732807903106,-460.4,9.863e-05,2]
[343663760,1732807903129,-500.0,9.863e-05,2]
[343663761,1732807903153,-321.19572135,9.863e-05,2]
[343663762,1732807903177,-502.65230301,9.863e-05,2]
[343663763,1732807903199,-501.51145619,9.863e-05,2]
[343663764,1732807903222,-618.18229455,9.863e-05,2]
[343663765,1732807903246,-500.0,9.863e-05,2]
[343663766,1732807903270,-597.59,9.863e-05,2]
[343663767,1732807903293,-500.0,9.863e-05,2]
[343663768,1732807903316,-500.0,9.863e-05,2]
[343663769,1732807903351,-637.23,9.863e-05,2]
[343663770,1732807903375,-500.0,9.863e-05,2]
[343663771,1732807903400,-500.0,9.863e-05,2]
[343663772,1732807903424,-506.66486312,9.863e-05,2]
[343663773,1732807903448,-500.0,9.863e-05,2]
[343663774,1732807903473,-500.0,9.863e-05,2]
[343663775,1732807903500,-503.09290054,9.863e-05,2]
[343663776,1732807903524,-500.0,9.863e-05,2]
[343663777,1732807903548,-632.31834493,9.863e-05,2]
[343663778,1732807903573,-500.0,9.863e-05,2]
[343663779,1732807903598,-324.45,9.863e-05,2]
[343663780,1732807903621,-501.66890479,9.863e-05,2]
[343663781,1732807903644,-534.90702818,9.863e-05,2]
[343663782,1732807903669,-500.0,9.863e-05,2]
[343663783,1732807903693,-500.0,9.863e-05,2]
[343663784,1732807903717,-523.51,9.863e-05,2]
[343663785,1732807903743,-503.33586839,9.863e-05,2]
[343663786,1732807903766,-500.0,9.863e-05,2]
[343663787,1732807903790,-500.0,9.863e-05,2]
[343663788,1732807903814,-443.68,9.863e-05,2]
[343663789,1732807903839,-286.32252767,9.863e-05,2]
[343663790,1732807903864,-500.0,9.863e-05,2]
[343663791,1732807903888,-500.0,9.863e-05,2]
[343663792,1732807903912,-500.0,9.863e-05,2]
[343663793,1732807903939,-319.83,9.863e-05,2]
[343663794,1732807903964,-500.0,9.863e-05,2]
[343663795,1732807903988,-500.0,9.863e-05,2]
[343663796,1732807904014,-500.0,9.863e-05,2]
[343663797,1732807904038,-500.0,9.863e-05,2]
[343663798,1732807904061,-500.0,9.863e-05,2]
[343663799,1732807904086,-552.45,9.863e-05,2]
[343663800,1732807904111,-500.0,9.863e-05,2]
[343663801,1732807904134,-290.40871307,9.863e-05,2]
[343663802,1732807904159,-500.0,9.863e-05,2]
[343663803,1732807904182,-500.0,9.863e-05,2]
[343663804,1732807904207,-500.0,9.863e-05,2]
[343663805,1732807904234,-596.41594027,9.863e-05,2]
[343663806,1732807904264,-500.0,9.863e-05,2]
[343663807,1732807904288,-500.0,9.863e-05,2]
[343663808,1732807904313,-582.33,9.863e-05,2]
[343663809,1732807904338,-345.03490783,9.863e-05,2]
[343663810,1732807904364,-500.0,9.863e-05,2]
[343663811,1732807904389,-500.68536592,9.863e-05,2]
[343663812,1732807904413,-500.0,9.863e-05,2]
[343663813,1732807904436,-500.0,9.863e-05,2]
[343663814,1732807904460,-500.0,9.863e-05,2]
[343663815,1732807904485,-500.0,9.863e-05,2]
[343663816,1732807904513,-500.0,9.863e-05,2]
[343663817,1732807904536,-500.0,9.863e-05,2]
[343663818,1732807904560,-500.0,9.863e-05,2]
[343663819,1732807904583,-500.0,9.863e-05,2]
[343663820,1732807904605,-500.0,9.863e-05,2]
[343663821,1732807904629,-287.08036353,9.863e-05,2]
[343663822,1732807904653,-500.0,9.863e-05,2]
[343663823,1732807904676,-500.0,9.863e-05,2]
[343663824,1732807904699,-500.0,9.863e-05,2]
[343663825,1732807904723,-500.0,9.863e-05,2]
[343663826,1732807904748,-500.0,9.863e-05,2]
[343663827,1732807904771,-500.0,9.863e-05,2]
[343663828,1732807904796,-500.0,9.863e-05,2]
[343663829,1732807904819,-500.0,9.863e-05,2]
[343663830,1732807904846,-607.69,9.863e-05,2]
[343663831,1732807905047,-500.0,9.863e-05,2]
[343663832,1732807905081,-500.0,9.863e-05,2]
[343663833,1732807905106,-500.0,9.863e-05,2]
[343663834,1732807905131,-500.0,9.863e-05,2]
[343663835,1732807905154,-305.23338306,9.863e-05,2]
[343663836,1732807905176,-500.0,9.863e-05,2]
[343663837,1732807905198,-500.0,9.863e-05,2]
[343663838,1732807905220,-500.0,9.863e-05,2]
[343663839,1732807905244,-320.39500001,9.863e-05,2]
[343663840,1732807905267,-500.0,9.863e-05,2]
[343663841,1732807905289,-1312.24,9.863e-05,2]
[343663842,1732807905311,-1312.24,9.863e-05,2]
[343663843,1732807905335,-1312.24,9.863e-05,2]
[343663844,1732807905357,-1312.24,9.863e-05,2]
[343663845,1732807905380,-500.0,9.863e-05,2]
[343663846,1732807905403,-500.0,9.863e-05,2]
[343663847,1732807905426,-354.74,9.863e-05,2]
[343663848,1732807905452,-500.0,9.863e-05,2]
[343663849,1732807905476,-500.0,9.863e-05,2]
[343663850,1732807905503,-500.0,9.863e-05,2]
[343663851,1732807905529,-500.0,9.863e-05,2]
[343663852,1732807905553,-209.79,9.863e-05,2]
[343663853,1732807905579,-500.0,9.863e-05,2]
[343663854,1732807905605,-500.0,9.863e-05,2]
[343663855,1732807905630,-593.23060931,9.863e-05,2]
[343663856,1732807905654,-535.83,9.863e-05,2]
[343663857,1732807905677,-500.0,9.863e-05,2]
[343663858,1732807905699,-500.0,9.863e-05,2]
[343663859,1732807905723,-500.0,9.863e-05,2]
[343663860,1732807905747,-341.33,9.863e-05,2]
[343663861,1732807905770,-500.0,9.863e-05,2]
[343663862,1732807905792,-500.0,9.863e-05,2]
[343663863,1732807905814,-502.45953515,9.863e-05,2]
[343663864,1732807905840,-512.91,9.863e-05,2]
[343663865,1732807905863,-516.59169686,9.863e-05,2]
[343663866,1732807905886,-500.0,9.863e-05,2]
[343663867,1732807905911,-193.94943338,9.863e-05,2]
[343663868,1732807905937,-816.0,9.876e-05,2]
[343663869,1732807905963,-150.0,9.879e-05,2]
[343663870,1732807905989,-150.0,9.884e-05,2]
[343663871,1732807906018,-150.0,9.886e-05,2]
[343663872,1732807906040,-283.772,9.89e-05,2]
[343663873,1732807906062,-1096.0,9.89e-05,2]
[343663874,1732807906088,-150.0,9.898e-05,2]
[343663875,1732807906114,-150.0,9.899e-05,2]
[343663876,1732807906140,-150.0,9.916e-05,2]
[343663877,1732807906165,-1000.0,9.927e-05,2]
[343663878,1732807906192,-192.41252412,9.937e-05,2]
[343663879,1732807906217,-150.0,9.941e-05,2]
[343663880,1732807906248,-240.71520457,9.948e-05,2]
[343663881,1732807906272,-1000.0,9.95e-05,2]
[343663882,1732807906295,-1000.0,9.95e-05,2]
[343663883,1732807906318,-1000.0,9.95e-05,2]
[343663884,1732807906341,-1000.0,9.95e-05,2]
[343663885,1732807906363,-1000.0,9.95e-05,2]
[343663886,1732807906385,-1000.0,9.95e-05,2]
[343663887,1732807906409,-1000.0,9.95e-05,2]
[343663888,1732807906432,-1000.0,9.95e-05,2]
[343663889,1732807906455,-1000.0,9.95e-05,2]
[343663890,1732807906479,-1000.0,9.95e-05,2]
[343663891,1732807906504,-852.9773,9.95e-05,2]
[343663892,1732807906531,-150.0,9.952e-05,2]
[343663893,1732807906558,-150.0,9.962e-05,2]
[343663894,1732807906582,-872.9922702,9.97e-05,2]
[343663895,1732807906607,-872.9922702,9.97e-05,2]
[343663896,1732807906631,-872.9922702,9.972e-05,2]
[343663897,1732807906655,-200.0,9.972e-05,2]
[343663898,1732807906678,-161.38780287,9.973e-05,2]
[343663899,1732807906702,-500.0,9.973e-05,2]
[343663900,1732807906726,-709.0,9.98e-05,2]
[343663901,1732807906757,-19602.3740029,9.98e-05,2]
[343663902,1732807906780,-21717.22620353,9.98e-05,2]
[343663903,1732807906805,-872.9922702,9.981e-05,2]
[343663904,1732807906831,-872.9922702,9.982e-05,2]
[343663905,1732807906857,-308.35,9.986e-05,2]
[343663906,1732807906883,-150.0,9.986e-05,2]
[343663907,1732807906908,-200.0,9.987e-05,2]
[343663908,1732807906932,-500.0,9.989e-05,2]
[343663909,1732807906955,-542.17,9.989e-05,2]
[343663910,1732807906978,-380.54792543,9.989e-05,2]
[343663911,1732807907011,-384.57,9.989e-05,2]
[343663912,1732807907035,-254.48198987,9.989e-05,2]
[343663913,1732807907057,-2838.244,9.989e-05,2]
[343663914,1732807907079,-184.03,9.989e-05,2]
[343663915,1732807907103,-423.32162519,9.989e-05,2]
[343663916,1732807907126,-500.0,9.989e-05,2]
[343663917,1732807907148,-500.0,9.989e-05,2]
[343663918,1732807907171,-500.0,9.989e-05,2]
[343663919,1732807907194,-500.0,9.989e-05,2]
[343663920,1732807907217,-500.0,9.989e-05,2]
[343663921,1732807907240,-500.0,9.989e-05,2]
[343663922,1732807907270,-500.0,9.989e-05,2]
[343663923,1732807907292,-500.0,9.989e-05,2]
[343663924,1732807907315,-500.0,9.989e-05,2]
[343663925,1732807907338,-2160.95,9.989e-05,2]
[343663926,1732807907363,-500.0,9.989e-05,2]
[343663927,1732807907388,-633.12,9.989e-05,2]
[343663928,1732807907412,-87733.07810941,9.99e-05,2]
[343663929,1732807907436,-872.9922702,9.992e-05,2]
[343663930,1732807907461,-6017.1488106,9.993e-05,2]
[343663931,1732807907488,-4313.15220141,9.993e-05,2]
[343663932,1732807907754,-150.0,8.694e-05,2]
[343663933,1732807907795,-9.9481,8.694e-05,2]
[343663934,1732807907816,-140.0519,9.863e-05,2]
[343663935,1732807907869,-150.0,9.863e-05,2]
[343663936,1732807907910,-150.0,9.863e-05,2]
[343663937,1732807908142,-59.9481,9.863e-05,2]
[343663938,1732807908164,-90.0519,9.863e-05,2]
[343663939,1732807908207,-150.0,9.863e-05,2]
[343663940,1732807908272,-150.0,9.863e-05,2]
[343663941,1732807908326,-113.21381873,9.863e-05,2]
[343663942,1732807908349,-159.25657426,9.863e-05,2]
[343663946,1732808559390,-1290.6,8.219e-05,2]
[343663947,1732808559412,-159.9481,8.857e-05,2]
[343663948,1732808559435,-181.0,8.871e-05,2]
[343663949,1732808559457,-250.0,8.939e-05,2]
[343663950,1732808559480,-23900.0,8.957e-05,2]
[343663951,1732808559506,-257.77,8.975e-05,2]
[343663952,1732808559531,-15867.56740922,9e-05,2]
[343663953,1732808566869,-165.42,9.038e-05,2]
[343663954,1732808574435,-476.1918,9.4e-05,2]
[343663955,1732808581302,-150.0,9.588e-05,2]
[343663956,1732808581323,-500.0,9.589e-05,2]
[343663957,1732808581345,-500.0,9.589e-05,2]
[343663958,1732808581366,-500.0,9.589e-05,2]
[343663959,1732808581388,-500.0,9.589e-05,2]
[343663960,1732808581411,-171.31694366,9.589e-05,2]
[343663961,1732808581433,-130.18574712,9.589e-05,2]
[343664014,1732809032305,-1119.0,8.219e-05,2]
[343664015,1732809032391,-107.07,8.219e-05,2]
[343664016,1732809032402,-834.92104108,8.909e-05,2]
[343664017,1732809032413,-15.65895892,8.909e-05,2]
[343664018,1732809032423,-250.0,8.919e-05,2]
[343664019,1732809032433,-250.0,8.923e-05,2]
[343664020,1732809032443,-257.77,8.947e-05,2]
[343664021,1732809032453,-1000.0,8.955e-05,2]
[343664022,1732809032463,-150.0,9.588e-05,2]
[343664023,1732809032472,-500.0,9.589e-05,2]
[343664024,1732809032481,-901.17104108,9.589e-05,2]
[343664025,1732809032500,-899.61895892,9.589e-05,2]
[343664026,1732809032511,-1800.79,9.589e-05,2]
[343664027,1732809032520,-500.0,9.589e-05,2]
[343664028,1732809032530,-500.0,9.589e-05,2]
[343664029,1732809032540,-500.0,9.589e-05,2]
[343664030,1732809032550,-500.0,9.589e-05,2]
[343664031,1732809032560,-500.0,9.589e-05,2]
[343664032,1732809032570,-500.0,9.589e-05,2]
[343664033,1732809032579,-500.0,9.589e-05,2]
[343664034,1732809032589,-500.0,9.589e-05,2]
[343664035,1732809032598,-500.0,9.589e-05,2]
[343664036,1732809032608,-582.38,9.589e-05,2]
[343664037,1732809032619,-500.0,9.589e-05,2]
[343664038,1732809032629,-500.0,9.589e-05,2]
[343664039,1732809032639,-244.103,9.589e-05,2]
[343664040,1732809032652,-81.62517108,9.589e-05,2]
[343664041,1732809034900,-418.37482892,9.589e-05,2]
[343664042,1732809034912,-500.0,9.589e-05,2]
[343664043,1732809034921,-500.0,9.589e-05,2]
[343664044,1732809034932,-500.0,9.589e-05,2]
[343664045,1732809034941,-500.0,9.589e-05,2]
[343664046,1732809034951,-345.13536224,9.589e-05,2]
[343664047,1732809034960,-500.0,9.589e-05,2]
[343664048,1732809034970,-500.0,9.589e-05,2]
[343664049,1732809034979,-158.9,9.589e-05,2]
[343664050,1732809034989,-400.0,9.589e-05,2]
[343664051,1732809034998,-498.54,9.589e-05,2]
[343664052,1732809035008,-502.36,9.589e-05,2]
[343664053,1732809035017,-1000.0,9.699e-05,2]
[343664054,1732809035027,-3300.0,9.7e-05,2]
[343664055,1732809035037,-1832.76,9.7e-05,2]
[343664056,1732809035046,-150.0,9.745e-05,2]
[343664057,1732809035056,-150.0,9.784e-05,2]
[343664058,1732809035065,-436.8437,9.799e-05,2]
[343664059,1732809035075,-2025.0782,9.799e-05,2]
[343664060,1732809035084,-1000.0,9.8e-05,2]
[343664061,1732809035094,-2313.0,9.801e-05,2]
[343664062,1732809035103,-1608.594,9.86e-05,2]
[343664063,1732809035112,-3000.0,9.86e-05,3]
[343664064,1732809035122,-1800.79,9.862e-05,2]
[343664065,1732809035131,-1800.79,9.862e-05,2]
[343664066,1732809035140,-335.4183401,9.862e-05,2]
[343664067,1732809035150,-500.0,9.862e-05,2]
[343664068,1732809035162,-500.0,9.862e-05,2]
[343664069,1732809035171,-500.0,9.862e-05,2]
[343664070,1732809035181,-500.0,9.862e-05,2]
[343664071,1732809035192,-503.0,9.863e-05,2]
[343664072,1732809035203,-150.0,9.889e-05,2]
[343664073,1732809035213,-548.866,9.889e-05,2]
[343664074,1732809035222,-1178.13314003,9.899e-05,2]
[343664075,1732809035254,-9518.80719999,9.899e-05,2]
[343664080,1732809038273,-10496.27352605,9.899e-05,2]
[343664081,1732809038347,-5815.16,9.899e-05,2]
[343664082,1732809038359,-582.27999921,9.899e-05,2]
[343664083,1732809038415,-1993.16612001,9.899e-05,2]
[343664084,1732809038616,-1800.83630289,9.899e-05,2]
[343664106,1732809040588,-4761.5,9.899e-05,2]
[343664129,1732809043553,-1845.65501182,9.899e-05,2]
[343664130,1732809043563,-2239.041,9.899e-05,2]
[343664131,1732809043576,-1000.0,9.899e-05,2]
[343664132,1732809043590,-500.0,9.973e-05,2]
[343664133,1732809043600,-500.0,9.973e-05,2]
[343664134,1732809043611,-2640.256,9.973e-05,2]
[343664135,1732809043623,-184.029,9.973e-05,2]
[343664136,1732809043635,-3122.51769439,9.993e-05,2]
[343664137,1732809043647,-8854.1909809,9.993e-05,2]
[343664138,1732809043657,-10272.7120661,9.993e-05,2]
[343664139,1732809043670,-2000.0,9.993e-05,2]
[343664140,1732809043681,-200.0,9.993e-05,2]
[343664141,1732809043691,-200.0,9.993e-05,2]
[343664142,1732809043701,-200.0,9.993e-05,2]
[343664143,1732809043713,-2000.0,9.993e-05,2]
[343664144,1732809043726,-200.0,9.993e-05,2]
[343664145,1732809043736,-200.0,9.993e-05,2]
[343664146,1732809043747,-1800.79,9.997e-05,2]
[343664147,1732809043758,-500.0,9.997e-05,2]
[343664148,1732809043768,-12560.0,9.998e-05,2]
[343664149,1732809043779,-500.0,9.998e-05,2]
[343664150,1732809043790,-500.0,9.998e-05,2]
[343664151,1732809043800,-500.0,9.998e-05,2]
[343664152,1732809043811,-500.0,9.998e-05,2]
[343664153,1732809043821,-502.4832147,9.998e-05,2]
[343664154,1732809043832,-502.47469551,9.998e-05,2]
[343664155,1732809043843,-500.0,9.998e-05,2]
[343664156,1732809043854,-500.0,9.998e-05,2]
[343664157,1732809043867,-646.41697955,9.998e-05,2]
[343664158,1732809043878,-500.0,9.998e-05,2]
[343664159,1732809043888,-500.0,9.998e-05,2]
[343664160,1732809043899,-525.1630549,9.998e-05,2]
[343664161,1732809043909,-500.0,9.998e-05,2]
[343664162,1732809043923,-500.0,9.998e-05,2]
[343664163,1732809043934,-500.0,9.998e-05,2]
[343664164,1732809043943,-500.0,9.998e-05,2]
[343664165,1732809043954,-218.40863797,9.998e-05,2]
[343664166,1732809043963,-500.0,9.998e-05,2]
[343664167,1732809043974,-500.0,9.998e-05,2]
[343664168,1732809043984,-500.0,9.998e-05,2]
[343664169,1732809043996,-500.0,9.998e-05,2]
[343664170,1732809044008,-519.5736283,9.998e-05,2]
[343664171,1732809044019,-313.56105623,9.998e-05,2]
[343664172,1732809044029,-501.53527981,9.998e-05,2]
[343664173,1732809044040,-500.0,9.998e-05,2]
[343664174,1732809044051,-500.0,9.998e-05,2]
[343664175,1732809044062,-500.0,9.998e-05,2]